fUSD/lending_fUSD_20250926
["ID","MTS","AMOUNT","RATE_DAILY","PERIOD"]
[387780252,1758851251390,-400.0,0.000189,2]
[387780253,1758851251424,-327.04472238,0.000189,2]
[387780254,1758851254633,-240.94261952,0.000189,2]
[387780255,1758851258633,-209.32213433,0.000189,2]
[387780256,1758851259788,-400.0,0.000189,2]
[387780257,1758851260719,-157.03574026,0.000189,2]
[387780258,1758851264056,-264.57954295,0.000189,2]
[387780259,1758851267454,-559.88,0.000189,2]
[387780260,1758851271086,-350.22046688,0.000189,2]
[387780261,1758851275354,-400.0,0.000189,2]
[387780262,1758851275578,-196.13427694,0.000189,2]
[387780263,1758851278402,-230.29816224,0.00018881,2]
[387780264,1758851280660,-47.56183776,0.00018881,2]
[387780265,1758851280683,-135.00790797,0.000189,2]
[387780266,1758851282183,-378.35443093,0.000189,2]
[387780267,1758851283888,-165.25277173,0.000189,2]
[387780268,1758851284368,-78.81430913,0.000189,2]
[387780269,1758851284380,-242.37138174,0.000189,2]
[387780270,1758851286526,-151.0,0.00018946,2]
[387780271,1758851288213,-305.60453605,0.00018946,2]
[387780272,1758851291190,-48.48546395,0.00018946,2]
[387780273,1758851291215,-104.56704717,0.00018948,2]
[387780274,1758851292068,-43.26704717,0.00018948,2]
[387780275,1758851292081,-152.16590566,0.00018948,2]
[387780276,1758851294994,-209.24762355,0.00018992,2]
[387780277,1758851297839,-3.99035533,0.00018992,2]
[387780278,1758851297861,-254.52559678,0.00018995,2]
[387780279,1758851300604,-202.60494994,0.00019034,2]
[387780280,1758851300627,-27.69720944,0.0001909,2]
[387780281,1758851302918,-391.7414335,0.0001909,2]
[387780282,1758851307129,-184.82135706,0.0001909,2]
[387780283,1758851307151,-22.5732067,0.00019092,2]
[387780285,1758851409075,-249.89,0.00018981,2]
[387780286,1758851409603,-15.18507906,0.00019016,2]
[387780287,1758851411816,-283.09689256,0.00019016,2]
[387780288,1758851414905,-385.07077436,0.00019016,2]
[387780289,1758851417690,-236.80482107,0.00019016,2]
[387780290,1758851420287,-200.0,0.00019016,2]
[387780291,1758851422929,-151.0,0.00019016,2]
[387780292,1758851425479,-275.80050564,0.00019016,2]
[387780293,1758851429234,-195.53612996,0.00019016,2]
[387780294,1758851431051,-257.50579735,0.00019016,2]
[387780303,1758851431802,-441.32740636,0.00019051,2]
[387780304,1758851431856,-213.5754625,0.00019051,2]
[387780305,1758851431866,-181.86232963,0.00019057,2]
[387780306,1758851431875,-832.61239438,0.00019068,2]
[387780307,1758851431887,-167.38760562,0.00019068,2]
[387780308,1758851431896,-142.4967933,0.00019092,2]
[387780309,1758851431906,-250.0,0.00019095,2]
[387780310,1758851431916,-152.86176334,0.00019194,2]
[387780311,1758851431927,-230.430952,0.0001929,2]
[387780312,1758851431952,-969.569048,0.0001929,2]
[387780313,1758851431962,-80.22947292,0.00019291,2]
[387780314,1758851431974,-2384.12052708,0.00019291,2]
[387780315,1758851431984,-150.0,0.000194,2]
[387780316,1758851431993,-300.0,0.00019425,2]
[387780317,1758851432004,-300.0,0.00019426,2]
[387780318,1758851432013,-151.45,0.00019428,2]
[387780319,1758851432023,-170.42,0.00019533,2]
[387780320,1758851432032,-180.56,0.000197,2]
[387780321,1758851432042,-498.7,0.00019792,2]
[387780322,1758851432052,-2558.7651,0.000198,2]
[387780323,1758851432062,-521.28062618,0.00019843,2]
[387780324,1758851432072,-171.04804119,0.00019843,2]
[387780325,1758851432082,-1012.25828087,0.00019845,2]
[387780326,1758851432091,-327.87417013,0.00019846,2]
[387780327,1758851432101,-385.42152648,0.00019847,2]
[387780328,1758851432117,-244.02132878,0.00019847,2]
[387780329,1758851432127,-228.28458575,0.00019853,2]
[387780330,1758851432137,-1189.93073539,0.00019858,2]
[387780331,1758851432148,-4684.79021242,0.00019858,2]
[387780332,1758851432159,-400.4,0.00019858,2]
[387780333,1758851432170,-321.629999,0.00019858,2]
[387780334,1758851432184,-401.34823532,0.00019858,2]
[387780336,1758851432195,-1608.03116888,0.00019858,2]
[387780337,1758851432227,-1262.79542914,0.00019858,2]
[387780338,1758851432238,-9591.28931907,0.00019858,2]
[387780339,1758851432252,-814.64180572,0.00019858,2]
[387780465,1758851437280,345.1898499,0.00018934,2]
[387780471,1758851437744,-448.8052987,0.00019858,2]
[387780473,1758851440006,-29.75481466,0.00019858,2]
[387780474,1758851440017,-3958.59307614,0.00019858,2]
[387780475,1758851440028,-2482.427394,0.00019858,2]
[387780479,1758851443211,-9272.06531266,0.00019858,2]
[387780480,1758851443221,-151.90021532,0.00019862,2]
[387780481,1758851443231,-405.81361012,0.00019871,2]
[387780482,1758851443240,-327.87417013,0.00019871,2]
[387780483,1758851443250,-244.14025784,0.00019872,2]
[387780484,1758851443259,-171.04804119,0.00019879,2]
[387780485,1758851443269,-36466.5028011,0.00019879,2]
[387780486,1758851443279,-228.28458575,0.00019882,2]
[387780487,1758851443291,-1012.25828087,0.00019882,2]
[387780488,1758851443301,-36466.5028011,0.00019883,2]
[387780489,1758851443311,-244.14025784,0.00019885,2]
[387780490,1758851443322,-850.0,0.00019887,2]
[387780491,1758851443331,-151.90021532,0.00019887,2]
[387780492,1758851443341,-203.95499504,0.00019888,2]
[387780493,1758851443351,-151.0,0.00019888,2]
[387780494,1758851443360,-151.0,0.00019888,2]
[387780495,1758851443370,-151.0,0.00019888,2]
[387780496,1758851443379,-151.0,0.00019888,2]
[387780497,1758851443389,-151.0,0.00019888,2]
[387780498,1758851443398,-151.0,0.00019888,2]
[387780499,1758851443407,-151.0,0.00019888,2]
[387780500,1758851443417,-151.0,0.00019888,2]
[387780501,1758851443426,-151.0,0.00019888,2]
[387780502,1758851443435,-151.0,0.00019888,2]
[387780503,1758851443445,-151.0,0.00019888,2]
[387780504,1758851443454,-151.0,0.00019888,2]
[387780505,1758851443463,-151.0,0.00019888,2]
[387780506,1758851443473,-151.0,0.00019888,2]
[387780507,1758851443487,-151.0,0.00019888,2]
[387780508,1758851443497,-168.59527158,0.00019888,2]
[387780509,1758851443507,-165.11078088,0.00019888,2]
[387780510,1758851443516,-327.87417013,0.00019889,2]
[387780511,1758851443526,-1343.07662638,0.0001989,2]
[387780512,1758851443535,-405.81361012,0.00019896,2]
[387780513,1758851443545,-151.90021532,0.00019896,2]
[387780514,1758851443555,-171.04804119,0.00019897,2]
[387780515,1758851443565,-36466.5028011,0.00019898,2]
[387780516,1758851443575,-1013.24942253,0.00019899,2]
[387780517,1758851443586,-7038.2152,0.000199,2]
[387780518,1758851443595,-1102.1491,0.000199,2]
[387780519,1758851443605,-419.4868,0.000199,2]
[387780520,1758851443615,-56506.4112,0.000199,2]
[387780521,1758851443625,-1232.74084204,0.000199,2]
[387780522,1758851443634,-1000.0,0.000199,2]
[387780523,1758851443644,-177.90169941,0.000199,2]
[387780524,1758851443654,-2500.0,0.000199,2]
[387780525,1758851443663,-1693.7957491,0.000199,2]
[387780526,1758851443673,-151.90021532,0.00019901,2]
[387780527,1758851443683,-1012.25828087,0.00019904,2]
[387780528,1758851443693,-381.16915568,0.00019905,2]
[387780529,1758851443703,-521.28062618,0.00019911,2]
[387780530,1758851443712,-151.90021532,0.00019913,2]
[387780531,1758851443722,-228.28458575,0.00019916,2]
[387780532,1758851443731,-381.16915568,0.00019916,2]
[387780533,1758851443741,-521.28062618,0.00019917,2]
[387780534,1758851443750,-244.14025784,0.00019919,2]
[387780535,1758851443760,-405.81361012,0.0001993,2]
[387780536,1758851443770,-36466.5028011,0.00019931,2]
[387780537,1758851443779,-171.04804119,0.00019932,2]
[387780538,1758851443789,-629.44285526,0.00019933,2]
[387780539,1758851443798,-36466.5028011,0.00019934,2]
[387780540,1758851443808,-629.44285526,0.00019934,2]
[387780541,1758851443818,-171.04804119,0.00019935,2]
[387780542,1758851443828,-327.87417013,0.00019935,2]
[387780543,1758851443837,-381.16915568,0.00019937,2]
[387780544,1758851443846,-171.04804119,0.0001994,2]
[387780545,1758851443856,-151.90021532,0.00019941,2]
[387780546,1758851443865,-228.28458575,0.00019941,2]
[387780547,1758851443875,-1012.25828087,0.00019942,2]
[387780548,1758851443884,-36466.5028011,0.00019946,2]
[387780549,1758851443893,-629.44285526,0.00019947,2]
[387780550,1758851443903,-1012.25828087,0.00019947,2]
[387780551,1758851443912,-244.14025784,0.00019948,2]
[387780552,1758851443921,-327.87417013,0.0001995,2]
[387780553,1758851443934,-244.14025784,0.0001995,2]
[387780554,1758851443946,-1012.25828087,0.00019953,2]
[387780555,1758851443956,-228.28458575,0.00019955,2]
[387780556,1758851443965,-1012.25828087,0.00019957,2]
[387780557,1758851443977,-405.81361012,0.00019961,2]
[387780558,1758851443986,-327.87417013,0.00019962,2]
[387780559,1758851443995,-405.81361012,0.00019967,2]
[387780560,1758851444005,-327.87417013,0.0001997,2]
[387780561,1758851444014,-501.8034503,0.00019973,2]
[387780562,1758851444024,-500.0,0.00019973,2]
[387780563,1758851444033,-500.0,0.00019973,2]
[387780564,1758851444043,-500.39750398,0.00019973,2]
[387780565,1758851444053,-501.04488337,0.00019973,2]
[387780566,1758851444062,-500.95028483,0.00019973,2]
[387780567,1758851444195,-500.0,0.00019973,2]
[387780568,1758851444205,-244.14025784,0.00019974,2]
[387780569,1758851444215,-629.44285526,0.00019974,2]
[387780570,1758851444224,-381.16915568,0.00019975,2]
[387780571,1758851444234,-228.28458575,0.00019975,2]
[387780572,1758851444243,-521.28062618,0.00019976,2]
[387780573,1758851444253,-521.28062618,0.00019977,2]
[387780574,1758851444263,-381.16915568,0.00019977,2]
[387780575,1758851444272,-629.44285526,0.00019978,2]
[387780576,1758851444281,-405.81361012,0.00019978,2]
[387780577,1758851444291,-244.14025784,0.00019979,2]
[387780578,1758851444301,-952.82137193,0.0001998,2]
[387780579,1758851444310,-228.28458575,0.00019981,2]
[387780580,1758851444320,-381.16915568,0.00019983,2]
[387780581,1758851444331,-171.04804119,0.00019984,2]
[387780582,1758851444340,-405.81361012,0.00019986,2]
[387780583,1758851444349,-151.90021532,0.00019993,2]
[387780584,1758851444358,-521.28062618,0.00019995,2]
[387780585,1758851444368,-5630.995,0.00019997,2]
[387780586,1758851444377,-165.644,0.00019997,2]
[387780587,1758851444386,-151.0,0.00019997,2]
[387780588,1758851444396,-381.16915568,0.00019999,2]
[387780589,1758851444406,-521.28062618,0.00019999,2]
[387780590,1758851444415,-471.26249893,0.00019999,2]
[387780591,1758851444425,-500.0,0.00019999,2]
[387780592,1758851444434,-500.0,0.00019999,2]
[387780593,1758851444444,-500.0,0.00019999,2]
[387780594,1758851444453,-500.0,0.00019999,2]
[387780595,1758851444463,-500.0,0.00019999,2]
[387780596,1758851444473,-500.0,0.00019999,2]
[387780597,1758851444482,-500.0,0.00019999,2]
[387780598,1758851444494,-500.0,0.00019999,2]
[387780599,1758851444503,-500.0,0.00019999,2]
[387780600,1758851444517,-500.0,0.00019999,2]
[387780601,1758851444527,-500.0,0.00019999,2]
[387780602,1758851444537,-500.0,0.00019999,2]
[387780603,1758851444547,-500.0,0.00019999,2]
[387780604,1758851444557,-500.0,0.00019999,2]
[387780605,1758851444567,-500.0,0.00019999,2]
[387780606,1758851444580,-500.0,0.00019999,2]
[387780607,1758851444590,-500.0,0.00019999,2]
[387780608,1758851444600,-357.03500314,0.00019999,2]
[387780609,1758851444609,-500.0,0.00019999,2]
[387780610,1758851444619,-500.0,0.00019999,2]
[387780611,1758851444629,-500.0,0.00019999,2]
[387780612,1758851444639,-500.0,0.00019999,2]
[387780613,1758851444649,-500.0,0.00019999,2]
[387780614,1758851444659,-500.0,0.00019999,2]
[387780615,1758851444668,-500.0,0.00019999,2]
[387780616,1758851444677,-500.0,0.00019999,2]
[387780617,1758851444688,-500.0,0.00019999,2]
[387780618,1758851444699,-500.0,0.00019999,2]
[387780619,1758851444708,-300.0,0.00019999,2]
[387780620,1758851444718,-500.0,0.00019999,2]
[387780621,1758851444727,-500.0,0.00019999,2]
[387780622,1758851444737,-384.37588815,0.00019999,2]
[387780623,1758851444746,-500.0,0.00019999,2]
[387780624,1758851444756,-500.0,0.00019999,2]
[387780625,1758851444766,-500.0,0.00019999,2]
[387780626,1758851444775,-500.0,0.00019999,2]
[387780627,1758851444784,-500.0,0.00019999,2]
[387780628,1758851444794,-424.79347716,0.00019999,2]
[387780629,1758851444804,-500.0,0.00019999,2]
[387780630,1758851444813,-500.0,0.00019999,2]
[387780631,1758851444823,-500.0,0.00019999,2]
[387780632,1758851444833,-500.0,0.00019999,2]
[387780633,1758851444843,-500.0,0.00019999,2]
[387780634,1758851444852,-500.0,0.00019999,2]
[387780635,1758851444862,-500.0,0.00019999,2]
[387780636,1758851444871,-500.0,0.00019999,2]
[387780637,1758851444881,-500.0,0.00019999,2]
[387780638,1758851444891,-500.0,0.00019999,2]
[387780639,1758851444900,-500.0,0.00019999,2]
[387780640,1758851444910,-500.0,0.00019999,2]
[387780641,1758851444920,-500.0,0.00019999,2]
[387780642,1758851444933,-500.0,0.00019999,2]
[387780643,1758851444943,-500.0,0.00019999,2]
[387780644,1758851444954,-500.0,0.00019999,2]
[387780645,1758851444963,-178.89525764,0.00019999,2]
[387780652,1758851445888,-321.10474236,0.00019999,2]
[387780653,1758851445898,-211.01893308,0.00019999,2]
[387780654,1758851445911,-76.57352668,0.00019999,2]
[387780655,1758851445920,-500.0,0.00019999,2]
[387780656,1758851445932,-500.0,0.00019999,2]
[387780657,1758851445942,-500.0,0.00019999,2]
[387780658,1758851445951,-500.0,0.00019999,2]
[387780659,1758851445960,-250.0,0.00019999,2]
[387780660,1758851445970,-500.0,0.00019999,2]
[387780661,1758851445980,-500.0,0.00019999,2]
[387780662,1758851445990,-500.0,0.00019999,2]
[387780663,1758851446000,-500.0,0.00019999,2]
[387780664,1758851446009,-500.0,0.00019999,2]
[387780665,1758851446019,-500.0,0.00019999,2]
[387780666,1758851446028,-500.0,0.00019999,2]
[387780667,1758851446037,-500.0,0.00019999,2]
[387780668,1758851446046,-500.0,0.00019999,2]
[387780669,1758851446055,-500.0,0.00019999,2]
[387780670,1758851446067,-500.0,0.00019999,2]
[387780671,1758851446076,-500.0,0.00019999,2]
[387780672,1758851446086,-500.0,0.00019999,2]
[387780673,1758851446095,-500.0,0.00019999,2]
[387780675,1758851446104,-491.28516313,0.00019999,2]
[387780677,1758851446114,-500.0,0.00019999,2]
[387780678,1758851446124,-500.0,0.00019999,2]
[387780679,1758851446133,-500.0,0.00019999,2]
[387780680,1758851446143,-500.0,0.00019999,2]
[387780681,1758851446152,-500.0,0.00019999,2]
[387780682,1758851446161,-500.0,0.00019999,2]
[387780683,1758851446170,-500.0,0.00019999,2]
[387780684,1758851446179,-371.62835613,0.00019999,2]
[387780685,1758851446189,-500.0,0.00019999,2]
[387780686,1758851446198,-500.0,0.00019999,2]
[387780688,1758851446207,-500.0,0.00019999,2]
[387780690,1758851446217,-500.0,0.00019999,2]
[387780692,1758851446226,-500.0,0.00019999,2]
[387780694,1758851446235,-428.45153346,0.00019999,2]
[387780696,1758851446245,-629.44285526,0.0002,2]
[387780698,1758851446253,-7732.61856534,0.0002,2]
[387780701,1758851446281,-6855.34433527,0.0002,2]
[387780723,1758851617382,20000.0,0.00030136,120]
[387780724,1758851618225,151.0,0.00030137,120]
[387780725,1758851656893,-178.98760297,0.00018996,2]
[387780726,1758851661983,-168.52132388,0.00018996,2]
[387780727,1758851662078,300.0,0.00030137,120]
[387780728,1758851664976,-200.0,0.00018996,2]
[387780729,1758851668084,-174.55359508,0.00018996,2]
[387780730,1758851670194,-179.04592907,0.00018996,2]
[387780731,1758851902985,250.0,0.00015,2]
[387780732,1758851945386,159.31,9.485e-05,2]
[387780733,1758851945621,159.31,0.00010117,2]
[387780734,1758851946033,159.31,0.00010749,2]
[387780735,1758851946217,159.31,0.00011382,2]
[387780736,1758851946422,159.31,0.00012014,2]
[387780737,1758851946630,159.31,0.00012646,2]
[387780738,1758851946956,159.31,0.00013279,2]
[387780739,1758851947256,159.31,0.00013911,2]
[387780740,1758851947493,156.99,0.00014543,2]
[387780741,1758851947520,2.32,0.00014543,2]
[387780742,1758851947722,159.31,0.00015176,2]
[387780743,1758851947956,159.31,0.00015808,2]
[387780744,1758851948154,159.31,0.0001644,2]
[387780745,1758851949108,159.31,0.00017073,2]
[387780746,1758851949519,159.31,0.00017705,2]
[387780747,1758851949738,159.31,0.00018337,2]
[387780748,1758851952419,-159.31,0.0001897,2]
[387780750,1758852188970,-167.88535839,0.00019007,2]
[387780751,1758852189024,-295.80943332,0.00019026,2]
[387780752,1758852196035,-1538.75,0.00019026,2]
[387780753,1758852237002,-211.46108837,0.00018802,2]
[387780754,1758852238668,-38.53891163,0.00018802,2]
[387780755,1758852238690,-252.37649696,0.00018802,2]
[387780756,1758852240715,-227.37319169,0.00018802,2]
[387780757,1758852243007,-296.51034598,0.00018801,2]
[387780758,1758852245685,-3.48965402,0.00018801,2]
[387780759,1758852245707,-287.94537524,0.00018801,2]
[387780760,1758852248894,-268.8065204,0.00018766,2]
[387780761,1758852252220,-62.3334796,0.00018766,2]
[387780762,1758852252241,-12.05462476,0.00018801,2]
[387780763,1758852252262,-214.69480843,0.00018802,2]
[387780764,1758852255162,-400.0,0.00018802,2]
[387780765,1758852257167,-152.0,0.00018802,2]
[387780766,1758852259791,-219.00675869,0.00018802,2]
[387780767,1758852262302,-824.22,0.00018802,2]
[387780768,1758852267811,-228.93,0.00018802,2]
[387780769,1758852269719,-289.71645429,0.00018802,2]
[387780770,1758852269825,-400.0,0.00018802,2]
[387780771,1758852271795,-228.19595021,0.00018802,2]
[387780772,1758852275713,-308.68142462,0.00018802,2]
[387780773,1758852277768,-1789.3,0.00018802,2]
[387780774,1758852278406,-152.29628534,0.00018802,2]
[387780775,1758852284424,-194.55540859,0.00018802,2]
[387780776,1758852284899,-400.0,0.00018802,2]
[387780777,1758852287080,-525.17833214,0.00018802,2]
[387780778,1758852291956,-401.48501195,0.00018802,2]
[387780779,1758852292973,-193.22008173,0.00018802,2]
[387780780,1758852295981,-238.32509634,0.00018802,2]
[387780781,1758852298046,-342.40194526,0.00018802,2]
[387780782,1758852299211,-434.28,0.00018802,2]
[387780783,1758852301902,-157.0747866,0.00018708,2]
[387780784,1758852303993,-211.1597671,0.00018708,2]
[387780785,1758852306434,-214.1158843,0.00018708,2]
[387780786,1758852306455,-19.7921157,0.00018754,2]
[387780787,1758852307162,-54.57667394,0.00018754,2]
[387780788,1758852307186,-290.84665212,0.00018754,2]
[387780789,1758852309604,-169.77044138,0.00018754,2]
[387780790,1758852312378,-25.22955862,0.00018754,2]
[387780791,1758852312401,-197.48764957,0.00018779,2]
[387780792,1758852315007,-52.40235043,0.00018779,2]
[387780793,1758852315030,-300.0,0.00018801,2]
[387780794,1758852315059,-117.10593572,0.00018801,2]
[387780795,1758852315838,-182.89406428,0.00018801,2]
[387780796,1758852315883,-445.56187144,0.00018801,2]
[387780797,1758852319973,-230.42591282,0.00018801,2]
[387780798,1758852322704,-167.10386542,0.00018801,2]
[387780799,1758852323592,-43.09164968,0.00018801,2]
[387780800,1758852323645,-313.81670064,0.00018801,2]
[387780801,1758852329898,-189.0,0.00018801,2]
[387780802,1758852329920,-93.86409413,0.00018802,2]
[387780803,1758852330885,-1428.09,0.00018802,2]
[387780804,1758852333889,493.0,0.00030137,120]
[387780805,1758852334069,-180.94113145,0.00018802,2]
[387780806,1758852335713,-319.33718055,0.00018802,2]
[387780807,1758852337867,-2767.97,0.00018802,2]
[387780808,1758852340727,-289.82673946,0.00018802,2]
[387780809,1758852344984,-170.63,0.00018802,2]
[387780810,1758852347640,-400.0,0.00018802,2]
[387780811,1758852348398,-205.24812235,0.00018802,2]
[387780812,1758852351763,-393.61760292,0.00018802,2]
[387780813,1758852355711,-1087.86,0.00018802,2]
[387780814,1758852357849,-230.38239708,0.00018802,2]
[387780815,1758852362550,-380.31488622,0.00018802,2]
[387780816,1758852363605,-400.0,0.00018802,2]
[387780817,1758852367423,-207.0370136,0.00018802,2]
[387780818,1758852371110,-196.26118575,0.00018802,2]
[387780819,1758852371909,-400.0,0.00018802,2]
[387780820,1758852373563,-254.91187143,0.00018802,2]
[387780821,1758852375188,-310.53587378,0.00018802,2]
[387780822,1758852378701,-189.339,0.00018802,2]
[387780823,1758852380190,-320.48192298,0.00018802,2]
[387780824,1758852380253,-400.0,0.00018802,2]
[387780825,1758852387885,-400.0,0.00018802,2]
[387780826,1758852388436,-203.95920506,0.00018802,2]
[387780827,1758852392268,-227.65215505,0.00018802,2]
[387780828,1758852394456,-530.49169971,0.00018802,2]
[387780829,1758852395950,-402.87540769,0.00018802,2]
[387780830,1758852397520,-168.89899772,0.00018802,2]
[387780831,1758852402441,-189.937,0.00018802,2]
[387780832,1758852403959,-205.23718913,0.00018802,2]
[387780833,1758852404159,-400.0,0.00018802,2]
[387780834,1758852407049,-240.37517442,0.00018802,2]
[387780835,1758852409156,-164.8546289,0.00018802,2]
[387780836,1758852410717,-155.29417994,0.00018802,2]
[387780837,1758852411644,-779.1,0.00018802,2]
[387780838,1758852413801,-265.69963365,0.00018802,2]
[387780839,1758852417596,-191.47096111,0.00018802,2]
[387780840,1758852419393,-400.0,0.00018802,2]
[387780841,1758852420804,-279.05569279,0.00018802,2]
[387780842,1758852423373,-225.35920112,0.00018802,2]
[387780843,1758852425934,-200.18983255,0.00018802,2]
[387780844,1758852427346,-400.0,0.00018802,2]
[387780845,1758852428471,-205.80435474,0.00018802,2]
[387780846,1758852430451,-271.79831695,0.00018802,2]
[387780847,1758852436189,-295.42503788,0.00018802,2]
[387780848,1758852436567,-512.77,0.00018802,2]
[387780849,1758852441809,-178.45929828,0.00018802,2]
[387780850,1758852443749,-84.78576537,0.00018802,2]
[387780851,1758852443783,-230.42846926,0.00018891,2]
[387780852,1758852444181,-282.03719889,0.00018891,2]
[387780853,1758852445799,-296.33003675,0.00018891,2]
[387780854,1758852449382,-191.2042951,0.00018891,2]
[387780855,1758852498366,764.08558098,0.00023,30]
[387780856,1758852511872,763.94,0.00023,30]
[387780857,1758852531895,763.94,0.00023,30]
[387780858,1758852546399,763.94,0.00023,30]
[387780859,1758852554431,-238.05389798,0.00018905,3]
[387780860,1758852556980,-326.04604757,0.00018807,2]
[387780861,1758852560282,-214.05585807,0.00018807,2]
[387780862,1758852562582,-1244.53,0.00018807,2]
[387780863,1758852564022,-341.28166574,0.00018807,2]
[387780864,1758852566645,-327.391358,0.00018807,2]
[387780865,1758852568508,763.94,0.00023,30]
[387780866,1758852569521,-200.0,0.00018807,2]
[387780867,1758852571679,-244.53193848,0.00018807,2]
[387780868,1758852574399,-251.8809459,0.00018807,2]
[387780869,1758852575539,-196.93864184,0.00018807,2]
[387780870,1758852577614,-150.0,0.00018869,7]
[387780871,1758852577636,-120.71914947,0.00018869,2]
[387780872,1758852581493,-194.76282735,0.00018869,2]
[387780873,1758852583053,-211.29993295,0.00018852,2]
[387780874,1758852583323,763.94,0.00023,30]
[387780875,1758852587480,-155.32715023,0.00018852,2]
[387780876,1758852588105,-40.27291682,0.00018852,2]
[387780877,1758852588140,-419.45416636,0.00018869,2]
[387780878,1758852590926,-220.25277173,0.00018869,2]
[387780879,1758852594066,-175.04858872,0.00018869,2]
[387780880,1758852596439,-301.22832398,0.00018869,2]
[387780881,1758852598711,-336.87755864,0.00018869,2]
[387780882,1758852600402,-231.28369723,0.00018869,2]
[387780883,1758852600807,-605.08872662,0.00018869,2]
[387780884,1758852603249,-73.3841899,0.00018869,2]
[387780885,1758852603272,-81.11662307,0.00018905,3]
[387780886,1758852606195,-272.75615891,0.00018905,3]
[387780887,1758852609431,-74.07332004,0.00018905,3]
[387780888,1758852609456,-92.66684051,0.00018968,2]
[387780890,1758852615428,-227.47871544,0.00018968,2]
[387780891,1758852617517,-219.64193848,0.00018968,2]
[387780892,1758852621031,-110.10878742,0.00018968,2]
[387780894,1758852632002,-2000.0,0.00019031,2]
[387780895,1758852632012,-250.0,0.00019036,2]
[387780896,1758852632022,-194.84664074,0.00019046,2]
[387780897,1758852632056,-68.00335926,0.00019046,2]
[387780898,1758852632065,-407.88077945,0.00019062,2]
[387780899,1758852632075,-1200.0,0.0001909,2]
[387780900,1758852632085,-889.0,0.00019091,2]
[387780901,1758852632094,-300.0,0.00019091,2]
[387780902,1758852632104,-300.0,0.00019091,2]
[387780903,1758852632114,-1556.79,0.00019092,2]
[387780904,1758852632124,-437.867,0.00019092,2]
[387780905,1758852632133,-1000.0,0.00019092,2]
[387780906,1758852632143,-618.967,0.00019092,2]
[387780907,1758852632152,-719.951,0.00019092,2]
[387780908,1758852632162,-634.109,0.00019092,2]
[387780909,1758852632171,-731.349,0.00019092,2]
[387780910,1758852632181,-643.87,0.00019107,2]
[387780911,1758852632191,-150.0,0.0001928,2]
[387780912,1758852632200,-465.89,0.0001935,2]
[387780913,1758852632209,-5431.45,0.00019452,2]
[387780914,1758852632219,-1381.0,0.000195,2]
[387780915,1758852632228,-1924.07980916,0.000198,2]
[387780916,1758852632239,-1667.0691,0.000198,2]
[387780917,1758852632252,-5691.8688001,0.000198,2]
[387780918,1758852632272,-266.46845761,0.000198,2]
[387780919,1758852632293,-1111.38609621,0.000198,2]
[387780920,1758852632326,-3636.27664608,0.000198,2]
[387780921,1758852632335,-400.0,0.000198,7]
[387780922,1758852632344,-2368.58612,0.000198,2]
[387780923,1758852632354,-635.90848468,0.00019828,2]
[387780924,1758852632364,-1924.07980915,0.00019899,2]
[387780925,1758852632375,-9673.8019,0.000199,2]
[387780926,1758852632384,-185.05,0.000199,2]
[387780927,1758852632393,-1000.0,0.000199,2]
[387780928,1758852632402,-261.77204647,0.000199,2]
[387780929,1758852632412,-1000.0,0.000199,2]
[387780930,1758852632422,-900.0,0.000199,7]
[387780931,1758852632431,-1109.46675789,0.000199,2]
[387780933,1758852632441,-1000.0,0.000199,2]
[387780935,1758852632451,-2500.0,0.000199,2]
[387780937,1758852632460,-1542.37710199,0.000199,2]
[387780939,1758852632470,-159.82841824,0.000199,2]